[Event "Titled Tuesday Blitz May 9 Late 2023"]
[White "Sieciechowicz, Marcin"]
[Black "Peng, Li Min"]
[WhiteFideId "1130170"]
[BlackFideId "14112620"]
[WhiteElo "2302"]
[BlackElo "2436"]
[Result "0-1"]
[Round "11"]
[TimeControl "180+2"]
[Date "2023.05.09"]
[WhiteClock "0:01:31"]
[BlackClock "0:02:41"]

1. d4 {[%clk 0:03:00]}  d5 {[%clk 0:02:59]} 2. Bf4 {[%clk 0:03:01]}  e6 {[%clk 0:02:59]} 3. e3 {[%clk 0:03:01]}  Bd6 {[%clk 0:03:00]} 4. Bg3 {[%clk 0:03:02]}  Nf6 {[%clk 0:03:00]} 5. Nf3 {[%clk 0:03:02]}  O-O {[%clk 0:03:00]} 6. Bd3 {[%clk 0:03:02]}  c5 {[%clk 0:03:01]} 7. c3 {[%clk 0:03:03]}  Nc6 {[%clk 0:03:01]} 8. Nbd2 {[%clk 0:03:01]}  Qe7 {[%clk 0:03:02]} 9. Ne5 {[%clk 0:02:52]}  Nd7 {[%clk 0:03:02]} 10. f4 {[%clk 0:02:50]}  f6 {[%clk 0:03:00]} 11. Qh5 {[%clk 0:01:57]}  g6 {[%clk 0:02:56]} 12. Nxc6 {[%clk 0:01:57]}  bxc6 {[%clk 0:02:55]} 13. Qe2 {[%clk 0:01:57]}  e5 {[%clk 0:02:50]} 14. fxe5 {[%clk 0:01:51]}  fxe5 {[%clk 0:02:51]} 15. O-O-O {[%clk 0:01:43]}  e4 {[%clk 0:02:52]} 16. Bc2 {[%clk 0:01:43]}  Bxg3 {[%clk 0:02:50]} 17. hxg3 {[%clk 0:01:43]}  Nf6 {[%clk 0:02:48]} 18. Nb3 {[%clk 0:01:41]}  Bg4 {[%clk 0:02:47]} 19. Qd2 {[%clk 0:01:39]}  Bxd1 {[%clk 0:02:46]} 20. Rxd1 {[%clk 0:01:39]}  c4 {[%clk 0:02:45]} 21. Nc5 {[%clk 0:01:39]}  Ng4 {[%clk 0:02:45]} 22. Qe2 {[%clk 0:01:31]}  h5 {[%clk 0:02:41]} 0-1


[Site "https://www.chess.com"]

[Event "Titled Tuesday Blitz May 9 Late 2023"]
[White "Omranalhosani21"]
[Black "Bitoon, Richard"]
[BlackFideId "5201110"]
[WhiteElo "2627"]
[BlackElo "2374"]
[Result "0-1"]
[Round "11"]
[TimeControl "180+2"]
[Date "2023.05.09"]
[WhiteClock "0:00:00"]
[BlackClock "0:00:12"]

1. e4 {[%clk 0:02:57]}  e5 {[%clk 0:02:46]} 2. Nf3 {[%clk 0:02:46]}  Nc6 {[%clk 0:02:46]} 3. Bb5 {[%clk 0:02:46]}  a6 {[%clk 0:02:46]} 4. Ba4 {[%clk 0:02:46]}  Nf6 {[%clk 0:02:47]} 5. O-O {[%clk 0:02:45]}  b5 {[%clk 0:02:47]} 6. Bb3 {[%clk 0:02:45]}  Bb7 {[%clk 0:02:48]} 7. d4 {[%clk 0:02:40]}  Nxd4 {[%clk 0:02:48]} 8. Nxd4 {[%clk 0:02:40]}  exd4 {[%clk 0:02:48]} 9. Re1 {[%clk 0:02:04]}  d6 {[%clk 0:02:36]} 10. a4 {[%clk 0:01:47]}  Be7 {[%clk 0:02:33]} 11. c3 {[%clk 0:01:40]}  O-O {[%clk 0:02:22]} 12. cxd4 {[%clk 0:01:14]}  Nxe4 {[%clk 0:02:22]} 13. Bc2 {[%clk 0:00:57]}  Nf6 {[%clk 0:02:12]} 14. Nc3 {[%clk 0:00:55]}  b4 {[%clk 0:02:11]} 15. Ne2 {[%clk 0:00:55]}  Re8 {[%clk 0:02:07]} 16. Ng3 {[%clk 0:00:55]}  Bf8 {[%clk 0:02:07]} 17. Bg5 {[%clk 0:00:54]}  Rxe1+ {[%clk 0:02:02]} 18. Qxe1 {[%clk 0:00:52]}  h6 {[%clk 0:02:03]} 19. Bxf6 {[%clk 0:00:39]}  Qxf6 {[%clk 0:02:04]} 20. Qxb4 {[%clk 0:00:40]}  Bd5 {[%clk 0:01:54]} 21. Qc3 {[%clk 0:00:39]}  c6 {[%clk 0:01:23]} 22. Bd3 {[%clk 0:00:37]}  a5 {[%clk 0:01:18]} 23. Re1 {[%clk 0:00:35]}  g6 {[%clk 0:01:18]} 24. Be4 {[%clk 0:00:29]}  Qe6 {[%clk 0:01:01]} 25. Bf3 {[%clk 0:00:22]}  Qd7 {[%clk 0:00:54]} 26. Bxd5 {[%clk 0:00:21]}  cxd5 {[%clk 0:00:55]} 27. Rc1 {[%clk 0:00:16]}  Qxa4 {[%clk 0:00:54]} 28. Qf3 {[%clk 0:00:07]}  Qxd4 {[%clk 0:00:51]} 29. Rc7 {[%clk 0:00:07]}  f5 {[%clk 0:00:27]} 30. h4 {[%clk 0:00:06]}  Re8 {[%clk 0:00:25]} 31. h5 {[%clk 0:00:04]}  Re1+ {[%clk 0:00:25]} 32. Nf1 {[%clk 0:00:04]}  Qd1 {[%clk 0:00:14]} 33. Qxd1 {[%clk 0:00:03]}  Rxd1 {[%clk 0:00:15]} 34. hxg6 {[%clk 0:00:03]}  d4 {[%clk 0:00:16]} 35. g3 {[%clk 0:00:04]}  d3 {[%clk 0:00:13]} 36. Kg2 {[%clk 0:00:04]}  d2 {[%clk 0:00:13]} 37. Ne3 {[%clk 0:00:04]}  Re1 {[%clk 0:00:13]} 38. Nxf5 {[%clk 0:00:01]}  d1=Q {[%clk 0:00:13]} 39. Rf7 {[%clk 0:00:01]}  Rg1+ {[%clk 0:00:14]} 40. Kh3 {[%clk 0:00:01]}  Qh5+ {[%clk 0:00:13]} 41. Nh4 {[%clk 0:00:02]}  Rh1+ {[%clk 0:00:10]} 42. Kg2 {[%clk 0:00:02]}  Rxh4 {[%clk 0:00:11]} 43. gxh4 {[%clk 0:00:00]}  Qxg6+ {[%clk 0:00:12]} 0-1


[Site "https://www.chess.com"]

[Event "Titled Tuesday Blitz May 9 Late 2023"]
[White "Vlassov, Nikolai"]
[Black "Chigaev, Maksim"]
[WhiteFideId "4103360"]
[BlackFideId "4108116"]
[WhiteElo "2324"]
[BlackElo "2558"]
[Result "1-0"]
[Round "11"]
[TimeControl "180+2"]
[Date "2023.05.09"]
[WhiteClock "0:00:35"]
[BlackClock "0:00:01"]

1. e4 {[%clk 0:03:00]}  g6 {[%clk 0:02:57]} 2. Nc3 {[%clk 0:03:00]}  Bg7 {[%clk 0:02:58]} 3. h4 {[%clk 0:03:01]}  h5 {[%clk 0:02:58]} 4. Nf3 {[%clk 0:03:01]}  d6 {[%clk 0:02:58]} 5. Ng5 {[%clk 0:03:01]}  Nh6 {[%clk 0:02:58]} 6. Bc4 {[%clk 0:03:01]}  Nc6 {[%clk 0:02:59]} 7. d3 {[%clk 0:03:01]}  a6 {[%clk 0:02:58]} 8. a3 {[%clk 0:02:54]}  e6 {[%clk 0:02:57]} 9. f3 {[%clk 0:02:54]}  b5 {[%clk 0:02:57]} 10. Ba2 {[%clk 0:02:52]}  Qe7 {[%clk 0:02:58]} 11. Be3 {[%clk 0:02:50]}  Rb8 {[%clk 0:02:55]} 12. Qd2 {[%clk 0:02:45]}  Nd4 {[%clk 0:02:51]} 13. O-O {[%clk 0:02:26]}  c5 {[%clk 0:02:46]} 14. Nd1 {[%clk 0:02:24]}  f6 {[%clk 0:02:41]} 15. Nh3 {[%clk 0:02:21]}  e5 {[%clk 0:02:41]} 16. Nhf2 {[%clk 0:02:18]}  Nf7 {[%clk 0:02:37]} 17. c3 {[%clk 0:02:17]}  Qe6 {[%clk 0:02:37]} 18. Bxe6 {[%clk 0:02:14]}  Nxe6 {[%clk 0:02:37]} 19. d4 {[%clk 0:02:09]}  g5 {[%clk 0:01:49]} 20. dxc5 {[%clk 0:01:59]}  dxc5 {[%clk 0:01:47]} 21. hxg5 {[%clk 0:01:58]}  fxg5 {[%clk 0:01:46]} 22. Nh3 {[%clk 0:01:50]}  Bf6 {[%clk 0:01:09]} 23. Ndf2 {[%clk 0:01:49]}  Bb7 {[%clk 0:01:01]} 24. Rfd1 {[%clk 0:01:47]}  Bc6 {[%clk 0:00:57]} 25. a4 {[%clk 0:01:42]}  b4 {[%clk 0:00:42]} 26. cxb4 {[%clk 0:01:39]}  Rxb4 {[%clk 0:00:43]} 27. Qe2 {[%clk 0:01:35]}  Bb7 {[%clk 0:00:32]} 28. Nd3 {[%clk 0:01:35]}  Rd4 {[%clk 0:00:23]} 29. Bxd4 {[%clk 0:01:29]}  exd4 {[%clk 0:00:22]} 30. e5 {[%clk 0:01:27]}  Be7 {[%clk 0:00:23]} 31. Nhf2 {[%clk 0:01:24]}  g4 {[%clk 0:00:18]} 32. fxg4 {[%clk 0:01:22]}  hxg4 {[%clk 0:00:14]} 33. Qxg4 {[%clk 0:01:21]}  Nfg5 {[%clk 0:00:15]} 34. Nf4 {[%clk 0:01:16]}  Nxf4 {[%clk 0:00:09]} 35. Qxf4 {[%clk 0:01:15]}  Rg8 {[%clk 0:00:09]} 36. Kf1 {[%clk 0:01:13]}  Ne6 {[%clk 0:00:07]} 37. Qf5 {[%clk 0:01:06]}  Bxg2+ {[%clk 0:00:07]} 38. Ke2 {[%clk 0:01:05]}  Bd5 {[%clk 0:00:08]} 39. Ne4 {[%clk 0:00:58]}  Rg2+ {[%clk 0:00:08]} 40. Kf1 {[%clk 0:00:54]}  Rxb2 {[%clk 0:00:04]} 41. Rab1 {[%clk 0:00:47]}  Rh2 {[%clk 0:00:02]} 42. Kg1 {[%clk 0:00:41]}  Rh8 {[%clk 0:00:01]} 43. Rb8+ {[%clk 0:00:39]}  Nd8 {[%clk 0:00:02]} 44. Nf6+ {[%clk 0:00:37]}  Bxf6 {[%clk 0:00:02]} 45. exf6 {[%clk 0:00:35]}  Rh1+ {[%clk 0:00:02]} 46. Kf2 {[%clk 0:00:35]}  Rxd1 {[%clk 0:00:01]} 47. Qxd5 {[%clk 0:00:35]} 1-0


[Site "https://www.chess.com"]

[Event "Titled Tuesday Blitz May 9 Late 2023"]
[White "Bayo Milagro, Alvaro"]
[Black "Fernandez Guillen, Ernesto J."]
[WhiteFideId "22275240"]
[BlackFideId "3512428"]
[WhiteElo "2270"]
[BlackElo "2429"]
[Result "0-1"]
[Round "11"]
[TimeControl "180+2"]
[Date "2023.05.09"]
[WhiteClock "0:00:46"]
[BlackClock "0:02:03"]

1. Nf3 {[%clk 0:03:00]}  Nf6 {[%clk 0:02:54]} 2. c4 {[%clk 0:03:00]}  e6 {[%clk 0:02:55]} 3. g3 {[%clk 0:03:00]}  b6 {[%clk 0:02:54]} 4. Bg2 {[%clk 0:03:00]}  Bb7 {[%clk 0:02:55]} 5. O-O {[%clk 0:03:00]}  c5 {[%clk 0:02:55]} 6. Nc3 {[%clk 0:02:59]}  Be7 {[%clk 0:02:55]} 7. d4 {[%clk 0:03:00]}  cxd4 {[%clk 0:02:55]} 8. Qxd4 {[%clk 0:03:00]}  O-O {[%clk 0:02:55]} 9. Rd1 {[%clk 0:03:00]}  a6 {[%clk 0:02:52]} 10. Bg5 {[%clk 0:02:59]}  h6 {[%clk 0:02:50]} 11. Bxf6 {[%clk 0:02:58]}  Bxf6 {[%clk 0:02:51]} 12. Qf4 {[%clk 0:02:57]}  Nc6 {[%clk 0:02:45]} 13. Ne4 {[%clk 0:02:45]}  Bxb2 {[%clk 0:02:39]} 14. Rab1 {[%clk 0:02:45]}  Ba3 {[%clk 0:02:40]} 15. Nd6 {[%clk 0:02:39]}  Rb8 {[%clk 0:02:34]} 16. Ne5 {[%clk 0:02:10]}  Nxe5 {[%clk 0:02:30]} 17. Qxe5 {[%clk 0:01:57]}  Bxg2 {[%clk 0:02:28]} 18. Kxg2 {[%clk 0:01:57]}  Qc7 {[%clk 0:02:27]} 19. Rb3 {[%clk 0:01:46]}  Bxd6 {[%clk 0:02:21]} 20. Qxd6 {[%clk 0:01:46]}  Qxc4 {[%clk 0:02:22]} 21. Rxb6 {[%clk 0:01:43]}  Rxb6 {[%clk 0:02:21]} 22. Qxb6 {[%clk 0:01:44]}  d5 {[%clk 0:02:19]} 23. Qb2 {[%clk 0:01:31]}  Rc8 {[%clk 0:02:20]} 24. Rd2 {[%clk 0:01:26]}  Qc3 {[%clk 0:02:15]} 25. Qxc3 {[%clk 0:01:18]}  Rxc3 {[%clk 0:02:15]} 26. h4 {[%clk 0:01:19]}  h5 {[%clk 0:02:14]} 27. e3 {[%clk 0:01:17]}  g6 {[%clk 0:02:14]} 28. Rb2 {[%clk 0:01:16]}  Ra3 {[%clk 0:02:14]} 29. Kf1 {[%clk 0:01:12]}  Kg7 {[%clk 0:02:14]} 30. Ke2 {[%clk 0:01:13]}  Kf6 {[%clk 0:02:15]} 31. Kf3 {[%clk 0:01:11]}  Ke5 {[%clk 0:02:15]} 32. Rb7 {[%clk 0:01:11]}  f6 {[%clk 0:02:15]} 33. Rg7 {[%clk 0:01:10]}  Kf5 {[%clk 0:02:15]} 34. Rc7 {[%clk 0:01:00]}  Rxa2 {[%clk 0:02:15]} 35. Rc5 {[%clk 0:01:00]}  a5 {[%clk 0:02:15]} 36. e4+ {[%clk 0:00:58]}  Ke5 {[%clk 0:02:15]} 37. exd5 {[%clk 0:00:58]}  exd5 {[%clk 0:02:16]} 38. Rc8 {[%clk 0:00:56]}  a4 {[%clk 0:02:08]} 39. Re8+ {[%clk 0:00:57]}  Kf5 {[%clk 0:02:08]} 40. Rd8 {[%clk 0:00:57]}  Rd2 {[%clk 0:02:08]} 41. Ra8 {[%clk 0:00:56]}  Rd4 {[%clk 0:02:08]} 42. Ke3 {[%clk 0:00:56]}  Rb4 {[%clk 0:02:08]} 43. Ra5 {[%clk 0:00:54]}  Ke5 {[%clk 0:02:08]} 44. f4+ {[%clk 0:00:54]}  Ke6 {[%clk 0:02:06]} 45. Ra6+ {[%clk 0:00:50]}  Kf5 {[%clk 0:02:06]} 46. Rd6 {[%clk 0:00:51]}  Rb3+ {[%clk 0:02:00]} 47. Kf2 {[%clk 0:00:49]}  Rd3 {[%clk 0:02:01]} 48. Ke2 {[%clk 0:00:46]}  Rxg3 {[%clk 0:02:00]} 49. Rxd5+ {[%clk 0:00:47]}  Kxf4 {[%clk 0:02:00]} 50. Rd4+ {[%clk 0:00:47]}  Kf5 {[%clk 0:02:01]} 51. Rxa4 {[%clk 0:00:47]}  Rg4 {[%clk 0:02:01]} 52. Ra5+ {[%clk 0:00:48]}  Ke6 {[%clk 0:02:01]} 53. Ra6+ {[%clk 0:00:47]}  Kf7 {[%clk 0:02:01]} 54. Ra7+ {[%clk 0:00:48]}  Kg8 {[%clk 0:02:02]} 55. Ra8+ {[%clk 0:00:47]}  Kg7 {[%clk 0:02:02]} 56. Ra7+ {[%clk 0:00:47]}  Kh6 {[%clk 0:02:03]} 57. Ra6 {[%clk 0:00:46]}  f5 {[%clk 0:02:03]} 0-1


[Site "https://www.chess.com"]

[Event "Titled Tuesday Blitz May 9 Late 2023"]
[White "Adewumi, Tanitoluwa"]
[Black "Santos Ruiz, Miguel"]
[WhiteFideId "30966396"]
[BlackFideId "22291482"]
[WhiteElo "2571"]
[BlackElo "2499"]
[Result "1-0"]
[Round "11"]
[TimeControl "180+2"]
[Date "2023.05.09"]
[WhiteClock "0:00:01"]
[BlackClock "0:00:00"]

1. e4 {[%clk 0:02:52]}  c6 {[%clk 0:03:00]} 2. d4 {[%clk 0:02:52]}  d5 {[%clk 0:03:01]} 3. exd5 {[%clk 0:02:51]}  cxd5 {[%clk 0:03:02]} 4. Bd3 {[%clk 0:02:51]}  Nc6 {[%clk 0:03:01]} 5. c3 {[%clk 0:02:52]}  Qc7 {[%clk 0:03:00]} 6. Ne2 {[%clk 0:02:51]}  Bg4 {[%clk 0:03:00]} 7. O-O {[%clk 0:02:52]}  e6 {[%clk 0:03:00]} 8. Qe1 {[%clk 0:02:52]}  Nf6 {[%clk 0:02:56]} 9. Bg5 {[%clk 0:02:51]}  Be7 {[%clk 0:02:55]} 10. f3 {[%clk 0:02:42]}  Bf5 {[%clk 0:02:34]} 11. Bxf5 {[%clk 0:02:38]}  exf5 {[%clk 0:02:34]} 12. Ng3 {[%clk 0:02:16]}  Qd7 {[%clk 0:02:11]} 13. Bxf6 {[%clk 0:02:08]}  gxf6 {[%clk 0:02:11]} 14. Qe3 {[%clk 0:01:55]}  O-O {[%clk 0:01:55]} 15. Qh6 {[%clk 0:01:37]}  Kh8 {[%clk 0:01:55]} 16. Nh5 {[%clk 0:01:36]}  Rg8 {[%clk 0:01:55]} 17. Nxf6 {[%clk 0:01:36]}  Bxf6 {[%clk 0:01:50]} 18. Qxf6+ {[%clk 0:01:37]}  Rg7 {[%clk 0:01:51]} 19. Nd2 {[%clk 0:01:34]}  Nd8 {[%clk 0:01:39]} 20. Rae1 {[%clk 0:01:26]}  Ne6 {[%clk 0:01:39]} 21. Qxf5 {[%clk 0:00:51]}  Rag8 {[%clk 0:01:38]} 22. Qf6 {[%clk 0:00:32]}  Qd8 {[%clk 0:01:37]} 23. Qe5 {[%clk 0:00:03]}  Qh4 {[%clk 0:00:44]} 24. g3 {[%clk 0:00:01]}  Nf4 {[%clk 0:00:04]} 25. Kh1 {[%clk 0:00:01]}  Qh3 {[%clk 0:00:04]} 26. Qxf4 {[%clk 0:00:01]}  Rxg3 {[%clk 0:00:04]} 27. Qf6+ {[%clk 0:00:01]}  R3g7 {[%clk 0:00:02]} 28. Rg1 {[%clk 0:00:02]}  Qh4 {[%clk 0:00:01]} 29. Qxh4 {[%clk 0:00:01]}  Rg2 {[%clk 0:00:01]} 30. Rxg2 {[%clk 0:00:01]}  Rg7 {[%clk 0:00:00]} 31. Qf6 {[%clk 0:00:01]} 1-0


[Site "https://www.chess.com"]

[Event "Titled Tuesday Blitz May 9 Late 2023"]
[White "Janaszak, Dawid"]
[Black "Tanenbaum, Zachary"]
[WhiteFideId "1119206"]
[BlackFideId "2060850"]
[WhiteElo "2220"]
[BlackElo "2175"]
[Result "0-1"]
[Round "11"]
[TimeControl "180+2"]
[Date "2023.05.09"]
[WhiteClock "0:00:07"]
[BlackClock "0:00:51"]

1. d4 {[%clk 0:03:00]}  d5 {[%clk 0:03:00]} 2. c4 {[%clk 0:02:59]}  dxc4 {[%clk 0:03:01]} 3. e3 {[%clk 0:02:57]}  e5 {[%clk 0:03:00]} 4. Bxc4 {[%clk 0:02:57]}  Nc6 {[%clk 0:03:01]} 5. Nf3 {[%clk 0:02:57]}  e4 {[%clk 0:03:01]} 6. Nfd2 {[%clk 0:02:56]}  Qg5 {[%clk 0:03:02]} 7. Nxe4 {[%clk 0:02:45]}  Qxg2 {[%clk 0:03:02]} 8. Ng3 {[%clk 0:02:44]}  Qh3 {[%clk 0:03:01]} 9. Qf3 {[%clk 0:02:38]}  Nf6 {[%clk 0:02:55]} 10. Bf1 {[%clk 0:02:16]}  Qe6 {[%clk 0:02:35]} 11. Nc3 {[%clk 0:02:12]}  Nxd4 {[%clk 0:02:30]} 12. Qd1 {[%clk 0:02:12]}  Bc5 {[%clk 0:02:17]} 13. Bg2 {[%clk 0:02:05]}  Bd7 {[%clk 0:02:06]} 14. O-O {[%clk 0:02:02]}  Nc6 {[%clk 0:02:06]} 15. Nd5 {[%clk 0:01:59]}  Nxd5 {[%clk 0:01:55]} 16. Bxd5 {[%clk 0:01:59]}  Qe7 {[%clk 0:01:46]} 17. Bd2 {[%clk 0:01:20]}  O-O-O {[%clk 0:01:44]} 18. Rc1 {[%clk 0:01:15]}  Bh3 {[%clk 0:01:39]} 19. Bxc6 {[%clk 0:01:12]}  Bxf1 {[%clk 0:01:36]} 20. Kxf1 {[%clk 0:00:50]}  bxc6 {[%clk 0:01:33]} 21. Qe2 {[%clk 0:00:39]}  Kb7 {[%clk 0:01:24]} 22. b4 {[%clk 0:00:39]}  Bb6 {[%clk 0:01:23]} 23. b5 {[%clk 0:00:39]}  cxb5 {[%clk 0:01:20]} 24. Qf3+ {[%clk 0:00:37]}  Kb8 {[%clk 0:01:19]} 25. Bc3 {[%clk 0:00:37]}  f6 {[%clk 0:01:12]} 26. Rb1 {[%clk 0:00:33]}  Qd7 {[%clk 0:01:11]} 27. Kg2 {[%clk 0:00:24]}  h5 {[%clk 0:01:10]} 28. Nf5 {[%clk 0:00:19]}  h4 {[%clk 0:01:01]} 29. h3 {[%clk 0:00:18]}  Qd5 {[%clk 0:00:55]} 30. e4 {[%clk 0:00:18]}  Qd3 {[%clk 0:00:54]} 31. Rb3 {[%clk 0:00:09]}  Qxf3+ {[%clk 0:00:54]} 32. Kxf3 {[%clk 0:00:10]}  Rd3+ {[%clk 0:00:53]} 33. Ke2 {[%clk 0:00:11]}  Rxh3 {[%clk 0:00:52]} 34. Nxg7 {[%clk 0:00:08]}  b4 {[%clk 0:00:51]} 35. Bxf6 {[%clk 0:00:07]}  Rxb3 {[%clk 0:00:52]} 36. axb3 {[%clk 0:00:07]}  h3 {[%clk 0:00:51]} 37. Nf5 {[%clk 0:00:07]}  h2 {[%clk 0:00:51]} 0-1


[Site "https://www.chess.com"]

[Event "Titled Tuesday Blitz May 9 Late 2023"]
[White "Spitzl, Vinzent"]
[Black "Vakhlamov, Igor L."]
[WhiteFideId "12901253"]
[BlackFideId "24126748"]
[WhiteElo "2225"]
[BlackElo "2407"]
[Result "0-1"]
[Round "11"]
[TimeControl "180+2"]
[Date "2023.05.09"]
[WhiteClock "0:01:35"]
[BlackClock "0:02:15"]

1. e4 {[%clk 0:03:00]}  c5 {[%clk 0:02:59]} 2. Nf3 {[%clk 0:03:01]}  e6 {[%clk 0:03:00]} 3. d4 {[%clk 0:03:01]}  cxd4 {[%clk 0:03:01]} 4. Nxd4 {[%clk 0:03:02]}  Nf6 {[%clk 0:03:01]} 5. Nc3 {[%clk 0:03:00]}  Nc6 {[%clk 0:03:01]} 6. Ndb5 {[%clk 0:02:59]}  Bc5 {[%clk 0:03:01]} 7. Bf4 {[%clk 0:02:58]}  O-O {[%clk 0:03:01]} 8. Bc7 {[%clk 0:02:58]}  Qe7 {[%clk 0:03:01]} 9. Bd6 {[%clk 0:02:58]}  Bxd6 {[%clk 0:03:01]} 10. Qxd6 {[%clk 0:02:55]}  Qd8 {[%clk 0:03:01]} 11. O-O-O {[%clk 0:02:38]}  a6 {[%clk 0:03:01]} 12. Nd4 {[%clk 0:02:37]}  Ne7 {[%clk 0:03:02]} 13. Bd3 {[%clk 0:02:25]}  Ne8 {[%clk 0:02:56]} 14. Qg3 {[%clk 0:02:24]}  b5 {[%clk 0:02:55]} 15. h4 {[%clk 0:02:13]}  b4 {[%clk 0:02:51]} 16. Nce2 {[%clk 0:02:13]}  a5 {[%clk 0:02:49]} 17. h5 {[%clk 0:02:10]}  h6 {[%clk 0:02:49]} 18. Rh4 {[%clk 0:02:05]}  a4 {[%clk 0:02:39]} 19. Rg4 {[%clk 0:02:03]}  a3 {[%clk 0:02:38]} 20. Rxg7+ {[%clk 0:01:56]}  Nxg7 {[%clk 0:02:36]} 21. b3 {[%clk 0:01:49]}  Ba6 {[%clk 0:02:30]} 22. Nf4 {[%clk 0:01:43]}  e5 {[%clk 0:02:23]} 23. Nd5 {[%clk 0:01:42]}  Nxd5 {[%clk 0:02:15]} 24. Nf5 {[%clk 0:01:35]}  Qg5+ {[%clk 0:02:15]} 0-1


[Site "https://www.chess.com"]

[Event "Titled Tuesday Blitz May 9 Late 2023"]
[White "Kleiman, Jake"]
[Black "Santos Flores, Alberto"]
[WhiteFideId "2020041"]
[BlackFideId "3601234"]
[WhiteElo "2609"]
[BlackElo "2235"]
[Result "1-0"]
[Round "11"]
[TimeControl "180+2"]
[Date "2023.05.09"]
[WhiteClock "0:00:07"]
[BlackClock "0:00:00"]

1. d4 {[%clk 0:02:55]}  d5 {[%clk 0:02:58]} 2. Bf4 {[%clk 0:02:55]}  Nf6 {[%clk 0:02:54]} 3. e3 {[%clk 0:02:56]}  c5 {[%clk 0:02:52]} 4. Nc3 {[%clk 0:02:55]}  a6 {[%clk 0:02:44]} 5. dxc5 {[%clk 0:02:48]}  e6 {[%clk 0:02:43]} 6. Na4 {[%clk 0:02:47]}  Bxc5 {[%clk 0:02:26]} 7. Nxc5 {[%clk 0:02:48]}  Qa5+ {[%clk 0:02:26]} 8. c3 {[%clk 0:02:48]}  Qxc5 {[%clk 0:02:27]} 9. Nf3 {[%clk 0:02:47]}  Nc6 {[%clk 0:02:26]} 10. Be2 {[%clk 0:02:45]}  O-O {[%clk 0:02:26]} 11. O-O {[%clk 0:02:45]}  b5 {[%clk 0:02:26]} 12. Ne5 {[%clk 0:02:37]}  Bb7 {[%clk 0:02:23]} 13. Rc1 {[%clk 0:02:28]}  Nxe5 {[%clk 0:02:21]} 14. Bxe5 {[%clk 0:02:28]}  Nd7 {[%clk 0:02:22]} 15. Bg3 {[%clk 0:02:25]}  a5 {[%clk 0:02:16]} 16. Qd4 {[%clk 0:02:11]}  Ba6 {[%clk 0:01:56]} 17. Rfd1 {[%clk 0:01:56]}  Rfc8 {[%clk 0:01:49]} 18. Qh4 {[%clk 0:01:51]}  Qb6 {[%clk 0:01:44]} 19. e4 {[%clk 0:01:38]}  Nf6 {[%clk 0:01:43]} 20. exd5 {[%clk 0:01:30]}  Nxd5 {[%clk 0:01:43]} 21. Bd3 {[%clk 0:01:29]}  h6 {[%clk 0:01:40]} 22. Be5 {[%clk 0:01:25]}  Bb7 {[%clk 0:01:22]} 23. Qg3 {[%clk 0:01:14]}  f6 {[%clk 0:01:17]} 24. Bd4 {[%clk 0:01:12]}  Qc7 {[%clk 0:01:04]} 25. Bxb5 {[%clk 0:00:58]}  Qxg3 {[%clk 0:00:52]} 26. hxg3 {[%clk 0:00:58]}  e5 {[%clk 0:00:52]} 27. Be3 {[%clk 0:00:52]}  Nxe3 {[%clk 0:00:52]} 28. fxe3 {[%clk 0:00:53]}  Ba6 {[%clk 0:00:49]} 29. Rd5 {[%clk 0:00:47]}  Bxb5 {[%clk 0:00:45]} 30. Rxb5 {[%clk 0:00:48]}  a4 {[%clk 0:00:44]} 31. c4 {[%clk 0:00:47]}  Rab8 {[%clk 0:00:40]} 32. Rxb8 {[%clk 0:00:42]}  Rxb8 {[%clk 0:00:41]} 33. Rc2 {[%clk 0:00:40]}  Kf7 {[%clk 0:00:40]} 34. c5 {[%clk 0:00:36]}  Ke6 {[%clk 0:00:40]} 35. c6 {[%clk 0:00:37]}  Kd6 {[%clk 0:00:37]} 36. c7 {[%clk 0:00:34]}  Rc8 {[%clk 0:00:37]} 37. Rc4 {[%clk 0:00:34]}  Rxc7 {[%clk 0:00:18]} 38. Rxa4 {[%clk 0:00:33]}  Rc1+ {[%clk 0:00:19]} 39. Kh2 {[%clk 0:00:33]}  Re1 {[%clk 0:00:19]} 40. e4 {[%clk 0:00:31]}  Re2 {[%clk 0:00:19]} 41. Rb4 {[%clk 0:00:31]}  Kc5 {[%clk 0:00:19]} 42. a3 {[%clk 0:00:32]}  g6 {[%clk 0:00:19]} 43. g4 {[%clk 0:00:29]}  Re3 {[%clk 0:00:17]} 44. Kg1 {[%clk 0:00:28]}  Re2 {[%clk 0:00:17]} 45. Kf1 {[%clk 0:00:28]}  Rc2 {[%clk 0:00:16]} 46. Rb3 {[%clk 0:00:27]}  Kd4 {[%clk 0:00:16]} 47. Rf3 {[%clk 0:00:22]}  Rxb2 {[%clk 0:00:15]} 48. Rxf6 {[%clk 0:00:22]}  Ke3 {[%clk 0:00:14]} 49. Kg1 {[%clk 0:00:20]}  Kxe4 {[%clk 0:00:13]} 50. Rxg6 {[%clk 0:00:21]}  Kf4 {[%clk 0:00:11]} 51. Rxh6 {[%clk 0:00:19]}  Kxg4 {[%clk 0:00:11]} 52. Rh3 {[%clk 0:00:16]}  Ra2 {[%clk 0:00:10]} 53. Rb3 {[%clk 0:00:15]}  Kf4 {[%clk 0:00:10]} 54. Kf1 {[%clk 0:00:10]}  e4 {[%clk 0:00:09]} 55. g3+ {[%clk 0:00:10]}  Kg4 {[%clk 0:00:07]} 56. Ke1 {[%clk 0:00:10]}  Kf5 {[%clk 0:00:04]} 57. Re3 {[%clk 0:00:09]}  Ke5 {[%clk 0:00:04]} 58. Kf1 {[%clk 0:00:09]}  Kd4 {[%clk 0:00:04]} 59. Rb3 {[%clk 0:00:09]}  e3 {[%clk 0:00:04]} 60. g4 {[%clk 0:00:10]}  Ke4 {[%clk 0:00:04]} 61. g5 {[%clk 0:00:06]}  Kf3 {[%clk 0:00:00]} 62. Kg1 {[%clk 0:00:07]} 1-0


[Site "https://www.chess.com"]